fUST/lending_fUST_20250418
["ID","MTS","AMOUNT","RATE_DAILY","PERIOD"]
[358342450,1744963839111,-364.94695233,0.00018677,2]
[358342457,1744963841232,-0.00320674,0.00018677,2]
[358342459,1744963843602,-135.04984093,0.00018677,2]
[358342460,1744963843612,-430.82953845,0.00018677,2]
[358342534,1744963846792,-69.17046155,0.00018677,2]
[358342535,1744963846802,-500.0,0.00018677,2]
[358342536,1744963846812,-36195.97208696,0.00018678,2]
[358342537,1744963846823,-460.20140131,0.00018678,2]
[358342538,1744963846833,-68906.87842464,0.00018679,2]
[358342539,1744963846843,-1212.67124358,0.00018679,3]
[358342540,1744963846853,-284277.32567866,0.00018679,2]
[358342541,1744963922669,-206.8193,0.00018579,2]
[358342542,1744964093199,-347.5351,0.00018579,2]
[358342543,1744964102797,-179.9621,0.00018573,2]
[358342544,1744964107094,-198.4021,0.00018387,2]
[358342545,1744964112119,-149.133,0.00018387,2]
[358342546,1744964112142,-12.56820836,0.00018573,2]
[358342549,1744964163575,-300.0,0.00018573,2]
[358342550,1744964166295,-165.9587,0.00018573,2]
[358342551,1744964212980,-180.0397,0.00018568,2]
[358342552,1744964232534,-307.299,0.00018568,2]
[358342553,1744964283058,-300.0,0.00018568,2]
[358342554,1744964286973,-269.83242,0.00018568,2]
[358342555,1744964298004,-160.0,0.00018382,2]
[358342556,1744964314359,-294.71864816,0.00018382,2]
[358342557,1744964326976,-115.11377184,0.00018382,2]
[358342558,1744964326999,-185.18248395,0.00018568,2]
[358342559,1744964343907,-158.683,0.00018382,2]
[358342560,1744964352759,-311.2267079,0.00018382,2]
[358342561,1744964370212,-213.875356,0.00018382,2]
[358342562,1744964405550,-71.22984005,0.00018382,2]
[358342563,1744964405575,-223.29019612,0.00018568,2]
[358342564,1744964411613,-151.90906663,0.00018568,2]
[358342565,1744964411637,-133.51375148,0.00018568,2]
[358342566,1744964415330,-17.48624852,0.00018568,2]
[358342567,1744964415353,-147.14002372,0.00018573,2]
[358342568,1744964423035,-207.4,0.00018568,2]
[358342569,1744964423058,-42.6,0.00018573,2]
[358342570,1744964457663,-319.46197047,0.00018282,2]
[358342571,1744964457692,-310.25997628,0.00018573,2]
[358342572,1744964457719,-505.83580983,0.00018573,2]
[358342573,1744964457747,-500.0,0.00018573,2]
[358342574,1744964457775,-500.0,0.00018573,2]
[358342575,1744964457802,-500.0,0.00018573,2]
[358342576,1744964457830,-500.0,0.00018573,2]
[358342577,1744964457857,-210.72457905,0.00018573,2]
[358342578,1744964457884,-333.01870165,0.00018573,2]
[358342579,1744964457911,-300.0,0.00018577,2]
[358342580,1744964457939,-300.0,0.00018577,2]
[358342581,1744964457967,-300.0,0.00018578,2]
[358342582,1744964457997,-500.0,0.00018578,2]
[358342583,1744964458026,-500.0,0.00018578,2]
[358342584,1744964458056,-500.0,0.00018578,2]
[358342585,1744964458086,-552.12129627,0.00018578,2]
[358342586,1744964458118,-500.0,0.00018578,2]
[358342587,1744964458147,-322.14098092,0.00018578,2]
[358342588,1744964458184,-500.0,0.00018578,2]
[358342589,1744964458215,-250.0,0.00018578,2]
[358342590,1744964458246,-4890.43668553,0.00018579,2]
[358342591,1744964459052,-337.09917045,0.00018579,2]
[358342592,1744964525712,-200.31941327,0.00018468,2]
[358342593,1744964533884,-164.00368016,0.00018468,2]
[358342594,1744964533925,-79.64696126,0.000185,2]
[358342595,1744964547270,-120.67245201,0.000185,2]
[358342596,1744964547295,-179.32754799,0.00018573,2]
[358342597,1744964553777,-164.62627224,0.00018573,2]
[358342598,1744964583579,-156.04617977,0.00018573,2]
[358342599,1744964583603,-33.27143489,0.00018573,2]
[358342600,1744964590952,-216.99245552,0.00018368,2]
[358342601,1744964603553,216.99245552,0.0001801,2]
[358342602,1744964605638,-216.99245552,0.00018368,2]
[358342604,1744964607352,-250.62066355,0.00018368,2]
[358342605,1744964618741,188.84397746,0.0001801,2]
[358342639,1744964928434,608.31793722,0.0001516,7]
[358342654,1744965032558,-973.38350601,0.00018368,2]
[358342655,1744965032568,-151.0,0.00018568,2]
[358342657,1744965032578,-207.4,0.00018568,2]
[358342659,1744965032587,-300.0,0.00018572,2]
[358342660,1744965032597,-300.0,0.00018572,2]
[358342661,1744965032606,-300.0,0.00018572,2]
[358342662,1744965032616,-500.0,0.00018573,2]
[358342663,1744965032625,-500.0,0.00018573,2]
[358342664,1744965032634,-500.0,0.00018573,2]
[358342665,1744965032643,-500.0,0.00018573,2]
[358342666,1744965032653,-500.0,0.00018573,2]
[358342667,1744965032663,-500.0,0.00018573,2]
[358342668,1744965032672,-500.0,0.00018573,2]
[358342669,1744965032690,-337.09917045,0.00018578,2]
[358342670,1744965032702,-297.16418213,0.00018578,2]
[358342671,1744965032712,-167.04286692,0.00018578,2]
[358342672,1744965032722,-500.0,0.00018578,2]
[358342673,1744965032732,-500.0,0.00018578,2]
[358342674,1744965032742,-571.37808732,0.00018578,2]
[358342675,1744965032752,-500.0,0.00018578,2]
[358342676,1744965032761,-7650.86396033,0.00018579,2]
[358342677,1744965032783,-521.61715114,0.00018579,2]
[358342696,1744965038980,-89296.04884263,0.00018579,2]
[358342697,1744965038994,-100342.941879,0.00018579,2]
[358342698,1744965039006,-26404.65097584,0.00018579,2]
[358342699,1744965039018,-3838.47564121,0.00018579,2]
[358342721,1744965041061,-432.27611208,0.00018579,2]
[358342768,1744965041567,-0.00260364,0.00018579,2]
[358342815,1744965043805,-95912.96572157,0.00018579,2]
[358343143,1744965046873,-902.97666268,0.00018579,2]
[358343145,1744965046885,-39122.1094939,0.00018579,2]
[358343147,1744965046895,-1015.8069488,0.00018904,2]
[358343149,1744965046905,-1031.734716,0.00018984,2]
[358343151,1744965046915,-7770.0,0.00019,2]
[358343153,1744965046924,-319.0,0.00019005,2]
[358343155,1744965046934,-319.0,0.00019005,2]
[358343157,1744965046944,-354.39217902,0.00019005,2]
[358343159,1744965046954,-359.0,0.00019047,2]
[358343161,1744965046963,-364.97638078,0.00019047,2]
[358343163,1744965046973,-159.0,0.00019047,2]
[358343164,1744965046983,-159.0,0.00019047,2]
[358343165,1744965046993,-159.0,0.00019047,2]
[358343166,1744965047003,-160.74832948,0.00019047,2]
[358343167,1744965047013,-359.0,0.00019047,2]
[358343168,1744965047023,-359.0,0.00019047,2]
[358343169,1744965047032,-359.0,0.00019047,2]
[358343171,1744965047042,-359.0,0.00019047,2]
[358343172,1744965047052,-359.0,0.00019047,2]
[358343173,1744965047061,-319.0,0.00019047,2]
[358343174,1744965047071,-359.0,0.00019047,2]
[358343175,1744965047081,-319.0,0.00019047,2]
[358343176,1744965047090,-359.0,0.00019047,2]
[358343177,1744965047100,-319.0,0.00019047,2]
[358343178,1744965047109,-503.71455614,0.00019047,2]
[358343179,1744965047119,-319.0,0.00019047,2]
[358343180,1744965047128,-319.0,0.00019047,2]
[358343182,1744965047138,-319.0,0.00019047,2]
[358343183,1744965047147,-319.0,0.00019047,2]
[358343185,1744965047156,-319.0,0.00019047,2]
[358343187,1744965047165,-319.0,0.00019047,2]
[358343189,1744965047175,-448.65868365,0.00019047,2]
[358343191,1744965047184,-177.38996013,0.00019079,2]
[358343193,1744965047194,-367.48791838,0.00019079,2]
[358343196,1744965047204,-14385.26036424,0.0001908,2]
[358345003,1744965121092,-160.00959422,0.00018055,2]
[358345004,1744965132270,160.0,0.0001801,2]
[358345005,1744965148663,-38.31529328,0.00018055,2]
[358345006,1744965148687,-267.40954292,0.00018479,2]
[358345007,1744965155214,-182.5889631,0.00018478,2]
[358345008,1744965244585,-160.23052807,0.00018293,2]
[358345009,1744965257889,-100.42355264,0.00018293,2]
[358345010,1744965257912,-137.87191881,0.00018473,2]
[358345011,1744965264481,-22.35860926,0.00018473,2]
[358345012,1744965264504,-204.08629926,0.00018473,2]
[358345013,1744965301079,238.92964793,0.00017955,2]
[358345014,1744965304639,-198.24985608,0.00018473,2]
[358345015,1744965324436,-156.73245162,0.00018378,2]
[358345016,1744965378249,-196.35767872,0.00018378,2]
[358345260,1744965544035,24900.0,0.00017477,2]
[358345261,1744965579818,-322.77935996,0.00018376,2]
[358345262,1744965610082,-211.79431192,0.00018376,2]
[358345263,1744965621896,-234.15551216,0.00018376,2]
[358345264,1744965662897,-169.60459693,0.00018376,2]
[358345265,1744965725216,-157.0039481,0.00018376,2]
[358345266,1744965727227,-157.0039481,0.00018376,2]
[358345267,1744965741466,-197.49729422,0.00018184,2]
[358345268,1744965817421,257.7725522,0.00017474,2]
[358345269,1744965834801,-52.50270578,0.00018184,2]
[358345270,1744965834824,-139.62219287,0.00018374,2]
[358345271,1744965882821,172.60597475,0.00018,4]
[358345272,1744965910064,-219.09693735,0.00018374,2]
[358345273,1744965923892,-173.0821287,0.00018374,2]
[358345277,1744966024330,-274.62433007,0.00018468,2]
[358345278,1744966024354,-25.37566993,0.00018468,2]
[358345286,1744966083757,-182.02433007,0.00018468,2]
[358345287,1744966083781,-25.72164649,0.00018471,2]
[358345288,1744966090957,-217.69545765,0.00018376,2]
[358345316,1744966231918,-1883.73791314,0.00018376,2]
[358345318,1744966231927,-207.4,0.00018468,2]
[358345320,1744966231937,-300.0,0.00018471,2]
[358345322,1744966231946,-300.0,0.00018471,2]
[358345324,1744966231957,-300.0,0.00018471,2]
[358345326,1744966231966,-15853.33328323,0.00018472,2]
[358345328,1744966231975,-500.0,0.00018472,2]
[358345330,1744966231985,-500.0,0.00018473,2]
[358345332,1744966231995,-373.55543027,0.00018473,2]
[358345334,1744966232005,-500.0,0.00018473,2]
[358345336,1744966232016,-500.0,0.00018473,2]
[358345338,1744966232026,-500.0,0.00018473,2]
[358345340,1744966232035,-500.0,0.00018473,2]
[358345343,1744966232045,-317.22460987,0.00018478,2]
[358345346,1744966232055,-369732.59045708,0.00018479,2]
[358345349,1744966232064,-151.0,0.00018614,2]
[358345352,1744966232073,-151.08354952,0.00018614,2]
[358345355,1744966232082,-500.0,0.00018614,2]
[358345358,1744966232092,-500.0,0.00018614,2]
[358345361,1744966232101,-151.0,0.00018614,2]
[358345364,1744966232110,-151.0,0.00018614,2]
[358345367,1744966232120,-151.0,0.00018614,2]
[358345370,1744966232130,-151.0,0.00018614,2]
[358345373,1744966232140,-154.51386873,0.00018614,2]
[358345376,1744966232149,-151.0,0.00018614,2]
[358345379,1744966232159,-151.0,0.00018614,2]
[358345382,1744966232169,-266.19787755,0.00018614,2]
[358345385,1744966232179,-151.0,0.00018614,2]
[358345387,1744966232189,-197.96075176,0.00018614,2]
[358345389,1744966232199,-151.0,0.00018614,2]
[358345391,1744966232209,-201.71072664,0.00018614,2]
[358345393,1744966232218,-151.03064239,0.00018614,2]
[358345395,1744966232228,-500.0,0.00018614,2]
[358345397,1744966232237,-202.86520938,0.00018614,2]
[358345399,1744966232247,-500.0,0.00018614,2]
[358345401,1744966232257,-151.0,0.00018614,2]
[358345403,1744966232266,-500.0,0.00018614,2]
[358345405,1744966232276,-151.0,0.00018614,2]
[358345407,1744966232285,-734.60733471,0.00018618,2]
[358345409,1744966232295,-152.0,0.00018678,2]
[358345411,1744966232304,-151.0,0.00018751,2]
[358345413,1744966232314,-500.0,0.00018751,2]
[358345415,1744966232323,-500.0,0.00018751,2]
[358345417,1744966232333,-151.0,0.00018751,2]
[358345419,1744966232342,-151.0,0.00018751,2]
[358345420,1744966232352,-151.0,0.00018751,2]
[358345421,1744966232363,-151.0,0.00018751,2]
[358345422,1744966232373,-200.51549486,0.00018751,2]
[358345423,1744966232382,-151.0,0.00018751,2]
[358345424,1744966232392,-202.55607985,0.00018751,2]
[358345425,1744966232402,-151.0,0.00018751,2]
[358345426,1744966232412,-500.0,0.00018751,2]
[358345427,1744966232421,-500.0,0.00018751,2]
[358345428,1744966232431,-500.0,0.00018751,2]
[358345429,1744966232442,-151.0,0.00018751,2]
[358345430,1744966232451,-151.0,0.00018888,2]
[358345431,1744966232460,-500.0,0.00018888,2]
[358345432,1744966232469,-500.0,0.00018888,2]
[358345433,1744966232478,-151.0,0.00018888,2]
[358345434,1744966232488,-151.0,0.00018888,2]
[358345435,1744966232497,-300.89449123,0.00018888,2]
[358345436,1744966232507,-199.07163424,0.00018888,2]
[358345437,1744966232516,-197.53968718,0.00018888,2]
[358345438,1744966232525,-290.86589716,0.00018888,2]
[358345439,1744966232534,-500.0,0.00018888,2]
[358345440,1744966232543,-500.0,0.00018888,2]
[358345441,1744966232552,-500.0,0.00018888,2]
[358345442,1744966232561,-151.0,0.00018888,2]
[358345443,1744966232570,-184.99213117,0.000189,2]
[358345444,1744966232579,-60625.06761088,0.00018958,2]
[358345445,1744966232588,-720.75121736,0.00018958,3]
[358345446,1744966232597,-359.0,0.00018959,2]
[358345447,1744966232606,-359.0,0.00018959,2]
[358345448,1744966232615,-359.0,0.00018959,2]
[358345449,1744966232624,-359.0,0.00018959,2]
[358345450,1744966232633,-319.0,0.00018959,2]
[358345451,1744966232642,-359.0,0.00018959,2]
[358345452,1744966232651,-319.0,0.00018959,2]
[358345453,1744966232660,-359.0,0.00018959,2]
[358345454,1744966232669,-319.0,0.00018959,2]
[358345455,1744966232678,-359.0,0.00018959,2]
[358345456,1744966232687,-319.0,0.00018959,2]
[358345457,1744966232696,-359.0,0.00018959,2]
[358345458,1744966232705,-359.0,0.00018959,2]
[358345459,1744966232714,-359.0,0.00018959,2]
[358345460,1744966232723,-359.0,0.00018959,2]
[358345461,1744966232733,-319.0,0.00018959,2]
[358345462,1744966232743,-359.0,0.00018959,2]
[358345463,1744966232752,-319.0,0.00018959,2]
[358345464,1744966232762,-359.0,0.00018959,2]
[358345465,1744966232771,-319.0,0.00018959,2]
[358345466,1744966232781,-319.0,0.00018959,2]
[358345467,1744966232790,-359.0,0.00018959,2]
[358345468,1744966232799,-359.0,0.00018959,2]
[358345469,1744966232809,-359.0,0.00018959,2]
[358345470,1744966232818,-319.0,0.00018959,2]
[358345471,1744966232828,-359.0,0.00018959,2]
[358345472,1744966232838,-359.0,0.00018959,2]
[358345473,1744966232848,-319.0,0.00018959,2]
[358345474,1744966232858,-359.0,0.00018959,2]
[358345475,1744966232868,-319.0,0.00018959,2]
[358345476,1744966232878,-359.0,0.00018959,2]
[358345477,1744966232890,-359.0,0.00018959,2]
[358345478,1744966232900,-319.0,0.00018959,2]
[358345479,1744966232910,-359.0,0.00018959,2]
[358345480,1744966232920,-319.0,0.00018959,2]
[358345481,1744966232930,-433.98620838,0.00018959,2]
[358345482,1744966232939,-319.0,0.00018959,2]
[358345483,1744966232949,-319.0,0.00018959,2]
[358345484,1744966232958,-319.0,0.00018959,2]
[358345485,1744966232967,-319.0,0.00018959,2]
[358345486,1744966232977,-319.0,0.00018959,2]
[358345487,1744966232986,-319.0,0.00018959,2]
[358345488,1744966232995,-319.0,0.00018959,2]
[358345489,1744966233005,-370.19998625,0.00018959,2]
[358345490,1744966233014,-980.1479802,0.00018984,2]
[358345491,1744966233023,-1000.0,0.00019,19]
[358345492,1744966233033,-249.33190238,0.00019025,2]
[358345493,1744966233042,-500.0,0.00019025,2]
[358345494,1744966233051,-151.58182841,0.00019025,2]
[358345495,1744966233061,-176.3866925,0.00019025,2]
[358345496,1744966233070,-283.51632134,0.00019025,2]
[358345497,1744966233080,-500.0,0.00019025,2]
[358345498,1744966233089,-500.0,0.00019025,2]
[358345499,1744966233099,-500.0,0.00019025,2]
[358345500,1744966233109,-151.0,0.00019025,2]
[358345501,1744966233119,-177.38996013,0.00019078,2]
[358345502,1744966233128,-1375.00677178,0.00019078,2]
[358345503,1744966233137,-64524.88091189,0.0001908,2]
[358345504,1744966233146,-151.122535,0.0001908,2]
[358345505,1744966233155,-1783.747618,0.0001908,2]
[358345506,1744966233165,-1783.747618,0.0001908,2]
[358345507,1744966233175,-151.0,0.0001908,2]
[358345508,1744966233184,-151.0,0.0001908,2]
[358345509,1744966233194,-160.754371,0.0001908,2]
[358345510,1744966233359,-274.430276,0.0001908,2]
[358345511,1744966233370,-160.754371,0.0001908,2]
[358345512,1744966233380,-274.430276,0.0001908,2]
[358345513,1744966233391,-151.0,0.0001908,2]
[358345514,1744966233400,-151.0,0.0001908,2]
[358345515,1744966233411,-151.0,0.0001908,2]
[358345516,1744966233420,-151.0,0.0001908,2]
[358345517,1744966233430,-157.919227,0.0001908,2]
[358345518,1744966233440,-192.0,0.00019098,2]
[358345519,1744966233449,-1677.01049083,0.000191,2]
[358345520,1744966233459,-322.11558481,0.00019142,2]
[358345521,1744966233469,-500.0,0.00019162,2]
[358345522,1744966233479,-375.51952508,0.00019162,2]
[358345523,1744966233489,-500.0,0.00019162,2]
[358345524,1744966233499,-500.0,0.00019162,2]
[358345525,1744966233509,-151.0,0.00019162,2]
[358345526,1744966233519,-151.0,0.00019178,2]
[358345527,1744966233529,-201.6683,0.00019178,2]
[358345528,1744966233538,-251.775974,0.00019178,2]
[358345529,1744966233547,-162.728163,0.00019178,2]
[358345530,1744966233556,-1783.747618,0.00019178,2]
[358345531,1744966233565,-1783.747618,0.00019178,2]
[358345532,1744966233575,-151.0,0.00019178,2]
[358345533,1744966233583,-151.0,0.00019178,2]
[358345534,1744966233592,-160.754371,0.00019178,2]
[358345535,1744966233602,-274.430276,0.00019178,2]
[358345536,1744966233611,-160.754371,0.00019178,2]
[358345537,1744966233620,-274.430276,0.00019178,2]
[358345538,1744966233629,-177.483671,0.00019178,2]
[358345539,1744966233639,-151.0,0.00019178,2]
[358345540,1744966233647,-151.0,0.00019178,2]
[358345541,1744966233657,-151.0,0.00019178,2]
[358345542,1744966233666,-300.0,0.00019178,2]
[358345543,1744966233675,-211.228,0.00019218,2]
[358345544,1744966233684,-559.622,0.00019218,2]
[358345545,1744966233694,-707.0,0.00019218,2]
[358345546,1744966233703,-2248.0,0.00019218,2]
[358345547,1744966233712,-500.0,0.00019299,2]
[358345548,1744966233721,-500.0,0.00019299,2]
[358345549,1744966233731,-500.0,0.00019299,2]
[358345550,1744966233740,-182.66797445,0.00019299,2]
[358345551,1744966233749,-1430.35487465,0.00019329,2]
[358345552,1744966233760,-946.13272531,0.00019335,2]
[358345553,1744966233770,-500.0,0.00019436,2]
[358345554,1744966233780,-559.07445022,0.00019436,2]
[358345555,1744966233790,-520.24766045,0.00019436,2]
[358345556,1744966233799,-500.0,0.00019452,2]
[358345557,1744966233808,-150.282,0.00019522,2]
[358345558,1744966233818,-150.336,0.00019522,2]
[358345559,1744966233828,-500.0,0.00019573,2]
[358345560,1744966233838,-178.409,0.00019676,2]
[358345561,1744966233847,-500.0,0.0001971,2]
[358345562,1744966233857,-2101.43337073,0.00019768,2]
[358345563,1744966233867,-302.0,0.000198,2]
[358345564,1744966233878,-151.0,0.000198,2]
[358345565,1744966233890,-151.0,0.000198,2]
[358345566,1744966233900,-215.0738,0.00019837,2]
[358345567,1744966233909,-552.02646845,0.00019847,2]
[358345568,1744966233920,-1677.01049083,0.00019866,2]
[358345569,1744966233930,-151.0,0.000199,2]
[358345570,1744966233939,-151.0,0.000199,2]
[358345571,1744966233948,-500.0,0.00019973,2]
[358345572,1744966233959,-283.59035577,0.00019973,2]
[358345573,1744966233968,-555.41568491,0.00019973,2]
[358345574,1744966233977,-500.0,0.00019973,2]
[358345575,1744966233987,-500.0,0.00019973,2]
[358345576,1744966233996,-503.37854547,0.00019973,2]
[358345577,1744966234005,-500.0,0.00019973,2]
[358345578,1744966234015,-500.0,0.00019973,2]
[358345579,1744966234024,-500.0,0.00019973,2]
[358345580,1744966234033,-563.45842317,0.00019973,2]
[358345581,1744966234042,-500.0,0.00019973,2]
[358345582,1744966234051,-500.0,0.00019973,2]
[358345583,1744966234060,-500.0,0.00019973,2]
[358345584,1744966234069,-500.0,0.00019973,2]
[358345585,1744966234078,-500.0,0.00019973,2]
[358345586,1744966234087,-500.0,0.00019973,2]
[358345587,1744966234097,-500.0,0.00019973,2]
[358345588,1744966234106,-500.0,0.00019973,2]
[358345589,1744966234115,-501.66957675,0.00019973,2]
[358345590,1744966234125,-500.0,0.00019973,2]
[358345591,1744966234134,-500.0,0.00019973,2]
[358345592,1744966234143,-500.0,0.00019973,2]
[358345593,1744966234153,-500.0,0.00019973,2]
[358345594,1744966234161,-500.0,0.00019973,2]
[358345595,1744966234171,-500.0,0.00019973,2]
[358345596,1744966234181,-500.0,0.00019973,2]
[358345597,1744966234190,-500.0,0.00019973,2]
[358345598,1744966234200,-500.0,0.00019973,2]
[358345599,1744966234209,-500.0,0.00019973,2]
[358345600,1744966234219,-500.0,0.00019973,2]
[358345601,1744966234229,-269.32759546,0.00019973,2]
[358345602,1744966234239,-500.0,0.00019973,2]
[358345603,1744966234249,-547.68499654,0.00019973,2]
[358345604,1744966234259,-504.66782457,0.00019973,2]
[358345605,1744966234269,-500.0,0.00019973,2]
[358345606,1744966234279,-203.7495084,0.00019973,2]
[358345607,1744966234289,-500.0,0.00019973,2]
[358345608,1744966234300,-500.0,0.00019973,2]
[358345609,1744966234310,-629.63961308,0.00019973,2]
[358345610,1744966234321,-151.0,0.00019973,2]
[358345611,1744966234331,-1783.747618,0.00019973,2]
[358345612,1744966234341,-1783.747618,0.00019973,2]
[358345613,1744966234350,-151.0,0.00019973,2]
[358345614,1744966234360,-202.774747,0.00019973,2]
[358345615,1744966234370,-160.754371,0.00019973,2]
[358345616,1744966234379,-274.430276,0.00019973,2]
[358345617,1744966234389,-160.754371,0.00019973,2]
[358345618,1744966234399,-274.430276,0.00019973,2]
[358345619,1744966234409,-151.0,0.00019973,2]
[358345620,1744966234419,-151.0,0.00019973,2]
[358345621,1744966234429,-151.0,0.00019973,2]
[358345622,1744966234439,-39504.41747905,0.0002,2]
[358345623,1744966234449,-109434.62277355,0.0002,2]
[358345624,1744966234458,-200000.0,0.0002,2]
[358345625,1744966234467,-62002.60090445,0.0002,2]
[358345626,1744966234477,-857.0,0.0002,2]
[358345627,1744966234486,-5000.0,0.0002,3]
[358345628,1744966234495,-151.0,0.0002,2]
[358345629,1744966234505,-151.0,0.0002,2]
[358345630,1744966234514,-161.522199,0.0002,2]
[358345631,1744966234524,-1783.747618,0.0002,2]
[358345632,1744966234533,-1783.747618,0.0002,2]
[358345633,1744966234542,-1783.747618,0.0002,2]
[358345634,1744966234552,-1783.747618,0.0002,2]
[358345635,1744966234561,-1783.747618,0.0002,2]
[358345636,1744966234571,-1783.747618,0.0002,2]
[358345637,1744966234580,-1783.747618,0.0002,2]
[358345638,1744966234590,-1783.747618,0.0002,2]
[358345639,1744966234599,-250.0,0.0002,30]
[358345640,1744966234609,-151.0,0.0002,2]
[358345641,1744966234618,-151.0,0.0002,2]
[358345642,1744966234627,-151.0,0.0002,2]
[358345643,1744966234637,-151.0,0.0002,2]
[358345644,1744966234646,-160.754371,0.0002,2]
[358345645,1744966234655,-160.754371,0.0002,2]
[358345646,1744966234664,-160.754371,0.0002,2]
[358345647,1744966234673,-160.754371,0.0002,2]
[358345648,1744966234682,-274.430276,0.0002,2]
[358345649,1744966234692,-274.430276,0.0002,2]
[358345650,1744966234701,-274.430276,0.0002,2]
[358345651,1744966234710,-274.430276,0.0002,2]
[358345652,1744966234720,-160.754371,0.0002,2]
[358345653,1744966234729,-160.754371,0.0002,2]
[358345654,1744966234738,-160.754371,0.0002,2]
[358345655,1744966234748,-160.754371,0.0002,2]
[358345656,1744966234757,-274.430276,0.0002,2]
[358345657,1744966234767,-274.430276,0.0002,2]
[358345658,1744966234776,-274.430276,0.0002,2]
[358345659,1744966234786,-274.430276,0.0002,2]
[358345660,1744966234795,-151.0,0.0002,2]
[358345661,1744966234804,-151.0,0.0002,2]
[358345662,1744966234813,-151.0,0.0002,2]
[358345663,1744966234822,-151.0,0.0002,2]
[358345664,1744966234831,-151.0,0.0002,2]
[358345665,1744966234841,-268.444593,0.0002,2]
[358345666,1744966234850,-254.698396,0.0002,2]
[358345667,1744966234859,-2000.0,0.0002,4]
[358345668,1744966234868,-200.0,0.00020145,2]
[358345669,1744966234881,-420.0,0.00020145,2]
[358345670,1744966234890,-420.0,0.00020243,2]
[358345671,1744966234899,-500.89627065,0.0002038,2]
[358345672,1744966234908,-1000.0,0.00020548,2]
[358345673,1744966234917,-474.3,0.000208,2]
[358345674,1744966234928,-600.0,0.00020822,2]
[358345675,1744966234937,-1677.01049083,0.00020831,3]
[358345676,1744966234946,-160.0,0.00020836,2]
[358345677,1744966234954,-500.0,0.00020841,2]
[358345678,1744966234964,-420.40766787,0.00020843,2]
[358345679,1744966234973,-160.0,0.00020843,2]
[358345680,1744966234982,-160.0,0.00020846,2]
[358345681,1744966234991,-12559.7366029,0.00020846,2]
[358345682,1744966235000,-1783.747618,0.00020846,2]
[358345683,1744966235009,-1783.747618,0.00020846,2]
[358345684,1744966235018,-151.0,0.000209,4]
[358345685,1744966235027,-500.0,0.00020973,2]
[358345686,1744966235036,-500.0,0.00020973,2]
[358345687,1744966235045,-500.0,0.00020973,2]
[358345688,1744966235054,-500.0,0.00020973,2]
[358345689,1744966235062,-578.66176662,0.00020973,2]
[358345690,1744966235071,-150.68654401,0.00020973,2]
[358345691,1744966235079,-151.57305178,0.00020973,2]
[358345692,1744966235087,-151.0,0.00020973,2]
[358345693,1744966235096,-160.754371,0.00020973,2]
[358345694,1744966235105,-274.430276,0.00020973,2]
[358345695,1744966235114,-160.754371,0.00020973,2]
[358345696,1744966235124,-274.430276,0.00020973,2]
[358345697,1744966235133,-151.0,0.00020973,2]
[358345698,1744966235143,-153438.05082881,0.00021,2]
[358345699,1744966235383,-2107.95584165,0.00021,2]
[358345700,1744966235395,-361434.77917954,0.00021,2]
[358345701,1744966235405,-862.0,0.00021,2]
[358345702,1744966235415,-1994.0,0.00021,2]
[358345703,1744966235426,-1000.0,0.00021,21]